[Event "MCCT Chessable Masters 2022"]
[Site "Online"]
[Date "2022.05.16"]
[Round "3.6"]
[White "Ding, Liren"]
[Black "Shankland, Sam"]
[Result "1/2-1/2"]
[ECO "A30"]
[WhiteElo "2806"]
[BlackElo "2718"]
[Annotator "TA"]
[PlyCount "103"]
[EventDate "2022.05.19"]
[EventType "tourn"]
[EventCountry "NET"]
[SourceTitle "playchess.com"]
[Source "ChessBase"]
[SourceQuality "1"]
[TimeControl "900+10"]

{[%evp 16,103,22,16,25,0,7,0,12,4,0,-23,-10,-19,-11,-83,13,0,4,-48,-38,-38,-25,-23,-25,-111,-114,-102,-43,-45,-48,-316,-49,-56,-18,-16,-25,-15,-16,-15,-16,-10,-3,-60,-57,-87,-87,-90,-73,-67,-69,-83,-35,-77,-43,-29,-14,-1168,-1206,-1129,-1111,-960,-946,-1498,-1292,-541,-134,-500,-8,-8,-8,-8,-8,-8,-8,-8,0,0,0,0,0,0,0,0,0,0,0,0,0,0]} 1. Nf3 {[%emt 0:00:00]} c5 {[%emt 0:00:00]} 2. c4 {[%emt 0:00:23]} Nf6 {[%emt 0:00:03]} 3. b3 {[%emt 0:00:11]} g6 {[%emt 0:01:02]} 4. Bb2 {[%emt 0:00:05]} Bg7 {[%emt 0:00:01]} 5. g3 {[%emt 0:00:04]} b6 {[%emt 0:00:10]} 6. Bg2 {[%emt 0:00:01]} Bb7 {[%emt 0:00:01]} 7. O-O {[%emt 0:00:00]} O-O {[%emt 0:00:01]} 8. d4 {[%emt 0:00:57]} cxd4 {[%emt 0:00:17]} 9. Qxd4 {[%emt 0:00:00]} d6 {[%emt 0:00:15] A30: Symmetrical English: Double Fianchetto and Hedgehog.} 10. Rc1 {[%emt 0:03:36]} Nbd7 {[%emt 0:00:22]} 11. Nc3 {[%emt 0:00:02] [#]} a6 $146 {[%emt 0:00:33]} ({Predecessor:} 11... Rc8 12. Nd5 e6 13. Nxf6+ Bxf6 14. Qd2 d5 15. cxd5 Bxd5 16. Rxc8 Qxc8 17. Rc1 Qd8 18. Bxf6 Qxf6 19. Ne1 {½-½ (19) Robatsch,K (2410)-Stohl,I (2560) Austria 1992}) 12. Nd5 {[%emt 0:02:26]} b5 {[%emt 0:01:39]} 13. Qh4 {[%emt 0:01:02]} Nxd5 {[%emt 0:01:37]} 14. Bxg7 {[%emt 0:00:08]} Kxg7 {[%emt 0:00:01]} 15. cxd5 {[%emt 0:00:01]} (15. Ne1 $1 $11) 15... Nf6 {[%emt 0:00:04]} (15... Bxd5 $17 16. Re1 (16. Ng5 Bxg2 17. Kxg2 h6 $17) 16... Rc8) 16. e4 $11 {[%emt 0:01:22]} Rc8 {[%emt 0:00:52]} 17. Bh3 {[%emt 0:00:30]} (17. Rd1 $11) 17... Rxc1+ $15 {[%emt 0:00:44]} 18. Rxc1 {[%emt 0:00:00]} h6 {[%emt 0:00:11]} 19. Qf4 {[%emt 0:00:23]} Qb6 {[%emt 0:01:02]} 20. Rc2 {[%emt 0:03:01]} (20. a4 $11) 20... e5 $1 $17 {[%emt 0:03:11]} 21. dxe6 {[%emt 0:00:17]} fxe6 {[%emt 0:00:03]} ({Better is} 21... Bxe4 $17 22. Re2 (22. e7 Re8 $17) 22... g5 23. Nxg5 hxg5 24. Qxg5+ Bg6 25. exf7 Qd4) 22. Bxe6 {[%emt 0:03:07]} Nxe4 {[%emt 0:00:12]} 23. Qh4 {[%emt 0:00:01][%mdl 8192]} g5 $2 {[%emt 0:00:29]} ({Not} 23... Rxf3 24. Qe7+ Kh8 25. Bf7 $11 (25. Qe8+ Kg7 $11)) (23... Rf6 $1 $19 {[%cal Rf6e6]} 24. Bg4 h5 25. Bxh5 gxh5 26. Qxh5 Nxf2 $1 27. Qg5+ Kf7 28. Rxf2 Rxf3) 24. Qg4 $15 {[%emt 0:00:01] [#]} Nxf2 $1 {[%emt 0:00:25]} 25. Qd4+ {[%emt 0:00:06]} Qxd4 {[%emt 0:00:01]} 26. Nxd4 {[%emt 0:00:00]} Ne4 {[%emt 0:01:00]} 27. Rc7+ {[%emt 0:00:26]} Kf6 {[%emt 0:00:02][%cal Of6e5]} 28. Rxb7 {[%emt 0:00:03]} Ke5 {[%emt 0:00:01]} 29. Nc6+ {[%emt 0:00:24]} (29. Nxb5 $1 $11 axb5 30. Bd7) 29... Kxe6 {[%emt 0:00:04][%mdl 4096] Endgame KRN-KRN} 30. Re7+ {[%emt 0:00:02]} Kd5 {[%emt 0:00:06]} 31. Nb4+ {[%emt 0:00:11]} Kd4 {[%emt 0:00:02]} 32. Nxa6 {[%emt 0:00:22]} g4 {[%emt 0:00:30] ...Ng5 is the strong threat.} 33. Nc7 {[%emt 0:00:26]} Kd3 {[%emt 0:00:52]} (33... Ng5 $1 $17 {[%cal Rg5h3] ( -> ...Nh3+)} 34. Kg2 (34. Nxb5+ $2 Kc5 $19) 34... b4) 34. Ne6 {[%emt 0:00:16]} Rc8 {[%emt 0:00:14] And now ...Rc1+ would win.} (34... Ra8 $5 {[%cal Ra8a2]} 35. Nf4+ Ke3 $15) 35. Nf4+ {[%emt 0:00:23]} Kd4 {[%emt 0:00:28] Strongly threatening ...Rc1+.} 36. Rc7 {[%emt 0:00:36][%mdl 8192] Prevents Rc1+.} Rxc7 $19 {[%emt 0:00:33]} 37. Ne6+ {[%emt 0:00:01]} Ke3 $1 {[%emt 0:00:00]} 38. Nxc7 {[%emt 0:00:00] KN-KN} Nc3 {[%emt 0:00:01] White must now prevent ...d5.} 39. a4 {[%emt 0:00:20]} bxa4 {[%emt 0:00:02]} 40. bxa4 {[%emt 0:00:00] [#]} Nxa4 $2 {[%emt 0:00:32]} (40... d5 $1 $19 {[%cal Rd5d4] has better winning chances.} 41. Nb5 d4) 41. Kg2 $2 {[%emt 0:00:21][%mdl 8192] [#]} (41. Ne8 $17 {nothing else works.}) 41... Ke4 $2 {[%emt 0:00:17]} (41... Nc3 $1 $19 {Hoping for ...d5.} 42. Ne8 Ne4) 42. h3 $1 $11 {[%emt 0:00:06] The position is equal.} d5 {[%emt 0:00:28]} (42... h5 $5 43. Ne8 Kf5 $11) 43. hxg4 {[%emt 0:00:04]} d4 {[%emt 0:00:02]} 44. Kf2 {[%emt 0:00:02]} Nc3 {[%emt 0:00:08]} 45. Ne6 {[%emt 0:00:09]} d3 {[%emt 0:00:10]} 46. Nc5+ {[%emt 0:00:01]} Kd4 {[%emt 0:00:01]} 47. Nb3+ {[%emt 0:00:03]} Ke4 {[%emt 0:00:16] aiming for ...Nd1+.} 48. Nd2+ {[%emt 0:00:02]} Kd4 {[%emt 0:00:02]} 49. Nf3+ {[%emt 0:00:11]} Ke4 {[%emt 0:00:04]} 50. Nd2+ {[%emt 0:00:01]} Kd4 {[%emt 0:00:00] Threatens to win with ...Ne4+.} 51. Nf3+ {[%emt 0:00:01]} Ke4 {[%emt 0:00:01]} 52. Nd2+ {[%emt 0:00:00] Whites escaped into a draw.  Weighted Error Value: White=0.70/Black=0.57} 1/2-1/2

[Event "MCCT Chessable Masters 2022"]
[Site "Online"]
[Date "2022.05.16"]
[Round "3.7"]
[White "Hansen, Eric"]
[Black "Mishra, Abhimanyu"]
[Result "0-1"]
[ECO "B51"]
[WhiteElo "2606"]
[BlackElo "2535"]
[Annotator "TA"]
[PlyCount "98"]
[EventDate "2022.05.19"]
[EventType "tourn"]
[EventCountry "NET"]
[SourceTitle "playchess.com"]
[Source "ChessBase"]
[SourceQuality "1"]
[TimeControl "900+10"]

{[%evp 12,98,13,3,16,22,10,0,0,2,0,0,7,0,0,-43,21,-10,1,-13,0,-18,-14,-14,-6,-71,-68,-100,-40,-122,-69,-81,-84,-116,-117,-99,-116,-105,-107,-109,-109,-131,-81,-94,-90,-143,-109,-110,-113,-110,-123,-190,-187,-216,-229,-215,-8,-306,-306,-306,-306,-306,-306,-322,-311,-306,-306,-340,-322,-381,-364,-390,-390,-776,-758,-808,-771,-842,-793,-1271,-1220,-1138,-1118,-1118,-1093,-1050,-839,-963,-760]} 1. e4 {[%emt 0:00:00]} c5 {[%emt 0:00:00]} 2. Nf3 {[%emt 0:00:11]} d6 {[%emt 0:00:04]} 3. Bb5+ {[%emt 0:00:02]} Nd7 {[%emt 0:00:02]} 4. c3 {[%emt 0:01:24]} Ngf6 {[%emt 0:00:09]} 5. Qe2 {[%emt 0:00:01]} a6 {[%emt 0:00:30]} 6. Ba4 {[%emt 0:00:02]} b5 {[%emt 0:00:01]} 7. Bc2 {[%emt 0:00:00]} Bb7 {[%emt 0:00:01] B51: Sicilian: Moscow Variation (3 Bb5+) without 3...Bd7.} 8. O-O {[%emt 0:00:01]} g6 {[%emt 0:00:06]} 9. d4 {[%emt 0:00:08]} Bg7 {[%emt 0:00:12] The position is equal.} 10. Rd1 {[%emt 0:02:47]} cxd4 {[%emt 0:01:14]} 11. cxd4 {[%emt 0:00:03]} O-O {[%emt 0:00:01]} 12. Nc3 {[%emt 0:00:18] [#]} Qc7 $146 {[%emt 0:02:05]} ({Predecessor:} 12... Rc8 13. a3 Qb6 14. Be3 Ng4 15. Bg5 e5 16. dxe5 Ngxe5 17. Be7 Rfe8 18. Bxd6 Nc4 {½-½ (87) Gueci,T (2204)-Sovetbekova,N (1665) Chess.com INT 2021}) 13. Bd3 {[%emt 0:00:19]} Nb6 {[%emt 0:00:29]} (13... b4 $15 14. Nb1 e5) 14. a3 {[%emt 0:04:47]} Rac8 {[%emt 0:00:17]} 15. h3 {[%emt 0:00:02]} Nc4 {[%emt 0:01:46]} 16. Qe1 {[%emt 0:02:23]} Rfe8 {[%emt 0:03:16]} 17. a4 {[%emt 0:00:57]} b4 {[%emt 0:00:58]} 18. Nb1 {[%emt 0:00:02]} (18. Na2 $11) 18... e5 {[%emt 0:01:12][%cal Of6e4] Threatens to win with ...Nxe4!} (18... Na5 $5 {[%cal Ra5b3]} 19. Nbd2 e5 $17) 19. dxe5 {[%emt 0:00:43]} (19. b3 $2 Na5 20. dxe5 dxe5 $19) 19... dxe5 {[%emt 0:00:40]} ({Black should try} 19... Nxe5 $17 20. Nxe5 Rxe5) 20. Nbd2 {[%emt 0:00:36]} (20. Qxb4 $15 Bxe4 21. Bxc4 Bxf3 22. gxf3 Qxc4 23. Qxc4 Rxc4 24. Be3) 20... Nd6 {[%emt 0:00:21]} (20... Na5 $1 $17 21. Bb1 Qe7) 21. Qe2 {[%emt 0:00:24]} a5 {[%emt 0:00:35]} 22. b3 {[%emt 0:00:06]} Nd7 $1 {[%emt 0:00:49]} 23. Bb2 {[%emt 0:00:03]} Nc5 {[%emt 0:00:05]} 24. Rac1 {[%emt 0:00:17]} Qe7 {[%emt 0:00:30]} 25. Bb5 {[%emt 0:01:10]} Red8 {[%emt 0:01:11]} 26. Qe3 {[%emt 0:00:03]} Nxb5 {[%emt 0:01:08]} ({Black should play} 26... Ncxe4 {And now ...Nf5 would win.} 27. Nxe4 Rxc1 28. Rxc1 Bxe4) 27. axb5 $17 {[%emt 0:00:07]} Rd3 {[%emt 0:00:48]} 28. Qe2 {[%emt 0:00:01][%cal Oc1c5] Strongly threatening Rxc5!} Rcd8 {[%emt 0:00:18] 0x0.001a2ce1cda1dp-1022s more active pieces.} 29. Nc4 {[%emt 0:00:03][%csl LRa5,LRe5][%cal Rb2e5]} Rxd1+ $1 {[%emt 0:00:11]} ({Much worse is} 29... Bxe4 $6 30. Nfxe5 Bb7 31. Re1 $11 (31. Rxd3 $2 Nxd3 32. Rd1 Nxb2 $17)) (29... Rxb3 30. Nxa5 Rbd3 31. Nxb7 Rxd1+ 32. Rxd1 $16) 30. Rxd1 {[%emt 0:00:02]} Nxb3 {[%emt 0:00:09]} 31. Nfxe5 {[%emt 0:00:06] [#]} (31. Bxe5 $17 a4 32. Rxd8+ Qxd8 33. Qc2) 31... a4 $1 $19 {[%emt 0:00:26] White must now prevent ...a3.} 32. Nc6 {[%emt 0:00:40]} Bxc6 {[%emt 0:00:20]} ({Resist} 32... Rxd1+ 33. Qxd1 Bxc6 34. bxc6 $16) 33. bxc6 {[%emt 0:01:40] [#]} a3 $2 {[%emt 0:00:14]} ({Don't do} 33... Rxd1+ 34. Qxd1 Nc5 35. Bxg7 Kxg7 36. Qa1+ f6 37. e5 fxe5 38. Nxe5 $16) (33... Nd4 $1 $19 {[%cal Rd4e2]} 34. Bxd4 Bxd4) 34. Rxd8+ $4 {[%emt 0:01:08][%mdl 8192] This costs White the game.} (34. Nxa3 $1 $11 {and White has nothing to worry.} Rxd1+ 35. Qxd1 Bxb2 36. Nc4) 34... Qxd8 {[%emt 0:00:03]} 35. Nxa3 {[%emt 0:00:06]} bxa3 {[%emt 0:00:11]} 36. Bxa3 {[%emt 0:00:00]} Nd4 {[%emt 0:00:25] Against Qb5} 37. Qa6 {[%emt 0:00:11][%cal Oc6c7]} Be5 {[%emt 0:00:08]} 38. g3 {[%emt 0:00:21]} h5 {[%emt 0:00:09]} 39. Bc5 {[%emt 0:00:14]} Ne6 {[%emt 0:00:12]} 40. Be3 {[%emt 0:00:07]} Qd1+ {[%emt 0:00:11]} 41. Kg2 {[%emt 0:00:01]} Qc2 {[%emt 0:00:05] Prevents Qc4.} 42. Qc8+ $2 {[%emt 0:00:12]} (42. Qa8+ Kh7 43. c7 Nxc7 44. Qb7) 42... Kg7 {[%emt 0:00:05] Black is clearly winning.} 43. Qd7 {[%emt 0:00:19]} Qxe4+ {[%emt 0:00:07]} 44. Kf1 {[%emt 0:00:02] [#]} Bxg3 $1 {[%emt 0:00:20][%mdl 512]} 45. Bb6 {[%emt 0:00:15]} (45. Qd2 Bh2) 45... Be5 {[%emt 0:00:14] ( -> ...Nf4)} 46. Be3 {[%emt 0:00:01]} Qh1+ {[%emt 0:00:12]} 47. Ke2 {[%emt 0:00:03]} Qxh3 {[%emt 0:00:09]} 48. Qd5 {[%emt 0:00:00]} Qf5 {[%emt 0:00:06] ...h4 is the strong threat.} 49. Qc4 {[%emt 0:00:05]} Qg4+ {[%emt 0:00:07] Weighted Error Value: White=0.50/Black=0.13 (very precise)} 0-1

[Event "MCCT Chessable Masters 2022"]
[Site "Online"]
[Date "2022.05.16"]
[Round "3.8"]
[White "Mamedyarov, Shakhriyar"]
[Black "Van Foreest, Jorden"]
[Result "1/2-1/2"]
[ECO "D32"]
[WhiteElo "2770"]
[BlackElo "2715"]
[Annotator "TA"]
[PlyCount "56"]
[EventDate "2022.05.19"]
[EventType "tourn"]
[EventCountry "NET"]
[SourceTitle "playchess.com"]
[Source "ChessBase"]
[SourceQuality "1"]
[TimeControl "900+10"]

{[%evp 12,56,63,22,45,24,43,33,33,43,37,18,27,28,37,15,26,7,22,8,43,41,47,49,53,0,0,0,0,12,45,9,43,0,0,0,0,0,0,0,49,0,43,0,0,0,33]} 1. d4 {[%emt 0:00:00]} d5 {[%emt 0:00:00]} 2. c4 {[%emt 0:00:04]} e6 {[%emt 0:00:02]} 3. Nf3 {[%emt 0:00:02]} c5 {[%emt 0:00:03]} 4. cxd5 {[%emt 0:00:04]} exd5 {[%emt 0:00:01]} 5. Bg5 {[%emt 0:00:02]} Nf6 {[%emt 0:00:04]} 6. Nc3 {[%emt 0:00:24]} Be6 {[%emt 0:00:03]} 7. g3 {[%emt 0:00:41]} (7. Bxf6 $5 gxf6 8. e4 $14) 7... Nc6 {[%emt 0:00:05] D32: Tarrasch Defence: Sidelines and lines without g3.} 8. Bg2 {[%emt 0:00:05]} h6 {[%emt 0:00:01]} 9. Bxf6 {[%emt 0:00:21]} Qxf6 {[%emt 0:00:00] White is slightly better.} 10. O-O {[%emt 0:00:02]} O-O-O {[%emt 0:00:03][%cal Rc6d4] [#]} 11. Rc1 $146 {[%emt 0:00:19] With the idea dxc5.} ({Predecessor:} 11. Qa4 Kb8 12. Rad1 g5 13. dxc5 Bxc5 14. Qb5 Qe7 15. Na4 Bd6 16. Rc1 Rc8 17. Rfd1 {1-0 (58) Dreev,A (2647)-Nesterov,A (2479) Cheboksary 2021}) 11... Kb8 {[%emt 0:00:12][%cal Rc6d4]} 12. dxc5 {[%emt 0:01:03]} Bxc5 {[%emt 0:00:05]} 13. Na4 {[%emt 0:00:21]} Bd6 {[%emt 0:00:40]} 14. Qd2 {[%emt 0:00:54]} Rc8 {[%emt 0:00:47]} 15. Nc5 {[%emt 0:00:15]} Bxc5 {[%emt 0:00:04]} 16. Rxc5 {[%emt 0:00:00]} Ne5 {[%emt 0:00:01]} 17. Rxc8+ {[%emt 0:01:07]} Rxc8 {[%emt 0:00:03]} 18. b3 {[%emt 0:00:15] Against Nc4} Nxf3+ $1 {[%emt 0:00:24]} 19. Bxf3 {[%emt 0:00:00]} Qc3 {[%emt 0:00:45]} 20. Qf4+ {[%emt 0:00:16]} Qc7 {[%emt 0:00:01]} 21. Qa4 {[%emt 0:01:23]} Qc6 {[%emt 0:00:05] [#] White must now prevent ...Qxa4.} 22. Qa3 {[%emt 0:01:16]} Qc5 {[%emt 0:00:04]} 23. Qb2 {[%emt 0:00:34]} Qc3 {[%emt 0:00:04]} 24. Qa3 {[%emt 0:00:31][%cal Of3d5]} Qc5 {[%emt 0:00:09]} 25. Qa4 {[%emt 0:00:27]} (25. Qb2 $11 {is superior.} Qc3 26. Qa3) 25... Qc6 $14 {[%emt 0:00:05] [#] Strongly threatening ...Qxa4.} 26. Qf4+ {[%emt 0:00:11]} Qc7 $1 {[%emt 0:00:02]} 27. Qd4 {[%emt 0:00:39]} Qc3 $1 {[%emt 0:00:04]} 28. Qf4+ {[%emt 0:00:51]} Qc7 $1 {[%emt 0:00:02] Weighted Error Value: White=0.14 (very precise) /Black=0.07 (flawless)} 1/2-1/2

[Event "MCCT Chessable Masters 2022"]
[Site "Online"]
[Date "2022.05.16"]
[Round "4.1"]
[White "Carlsen, Magnus"]
[Black "Van Foreest, Jorden"]
[Result "1-0"]
[ECO "D32"]
[WhiteElo "2864"]
[BlackElo "2715"]
[Annotator "TA"]
[PlyCount "81"]
[EventDate "2022.05.19"]
[EventType "tourn"]
[EventCountry "NET"]
[SourceTitle "playchess.com"]
[Source "ChessBase"]
[SourceQuality "1"]
[TimeControl "900+10"]

{[%evp 11,81,48,24,21,35,20,21,22,68,79,76,48,131,98,102,105,98,69,98,102,202,200,203,200,204,200,209,206,200,201,201,201,282,286,286,266,312,316,316,330,322,321,312,277,448,437,425,396,413,410,497,497,697,639,826,818,733,671,1955,1962,1566,1504,4833,4833,4817,4821,29976,29975,29970,29973,4829,4821]} 1. d4 {[%emt 0:00:00]} d5 {[%emt 0:00:00]} 2. c4 {[%emt 0:00:05]} e6 {[%emt 0:00:02]} 3. Nc3 {[%emt 0:00:03]} c5 {[%emt 0:00:02]} 4. cxd5 {[%emt 0:00:01]} exd5 {[%emt 0:00:01]} 5. Nf3 {[%emt 0:00:02]} Nf6 {[%emt 0:00:01]} 6. Bg5 {[%emt 0:00:06]} Be6 {[%emt 0:00:02]} 7. dxc5 {[%emt 0:00:07][%cal Oe2e4] D32: Tarrasch Defence: Sidelines and lines without g3.} Bxc5 {[%emt 0:00:03]} 8. e3 {[%emt 0:00:01]} Nc6 {[%emt 0:00:12]} 9. Bb5 {[%emt 0:00:28] The position is equal.} h6 {[%emt 0:00:38]} (9... Rc8 $11 {might be stronger.}) 10. Bxf6 $14 {[%emt 0:00:58]} Qxf6 {[%emt 0:00:55] [#]} 11. Nxd5 $146 {[%emt 0:01:15]} (11. O-O $5 {[%cal Rc3d5]}) ({Predecessor:} 11. O-O O-O 12. h3 Rad8 13. Rb1 a6 14. Bxc6 bxc6 15. Nd4 Bd7 16. b4 Ba7 17. Qd3 {0-1 (27) Cook,P (937)-Kuttner,J (976) LSS email 2021}) 11... Qxb2 {[%emt 0:02:38]} ({Black should try} 11... Bxd5 $14 12. Qxd5 Bb4+ 13. Kf1 O-O) 12. Nc7+ {[%emt 0:00:03] Pair of Knights!} Ke7 {[%emt 0:00:01][%cal Oc5b6] [#] Hoping for ...Bb6!} 13. O-O {[%emt 0:00:07] And now Bxc6 would win.} Rad8 {[%emt 0:01:06]} 14. Qc1 {[%emt 0:01:37] Really sharp!} Qxc1 {[%emt 0:01:23]} 15. Raxc1 {[%emt 0:00:03]} Kd6 {[%emt 0:02:41]} (15... Bb6 $16) 16. Nxe6 $18 {[%emt 0:00:07]} fxe6 {[%emt 0:00:20]} 17. Rfd1+ {[%emt 0:01:20]} Kc7 {[%emt 0:00:10]} 18. Rxd8 {[%emt 0:00:00]} Rxd8 {[%emt 0:00:04]} 19. Rxc5 {[%emt 0:00:02]} Kb6 {[%emt 0:00:02] [#]} 20. Rxc6+ $1 {[%emt 0:01:39]} bxc6 {[%emt 0:00:04]} 21. Ba4 {[%emt 0:00:03]} c5 {[%emt 0:01:11]} (21... Kc5 {was worth a try.} 22. Ne5 Rd5) 22. Ne5 {[%emt 0:00:08]} Kc7 {[%emt 0:00:54]} 23. Kf1 {[%emt 0:00:20]} Rd2 {[%emt 0:00:41]} 24. Bb3 {[%emt 0:00:02]} Rb2 {[%emt 0:00:06]} 25. h4 {[%emt 0:00:06]} ({But not} 25. Bxe6 $2 Rb1+ 26. Ke2 Kd6 $19) 25... Rb1+ {[%emt 0:01:33]} 26. Ke2 {[%emt 0:00:02]} Kd6 {[%emt 0:00:12]} 27. f4 {[%emt 0:00:05]} Rb2+ $2 {[%emt 0:00:12]} (27... h5 28. Nd3 Rg1) 28. Kf3 {[%emt 0:00:02] Black must now prevent Nc4+.} Rb1 {[%emt 0:00:34]} 29. g4 {[%emt 0:00:01][%cal Bg2g4,Bg4g5][%mdl 32]} Rc1 {[%emt 0:00:12]} 30. g5 {[%emt 0:00:37]} Ke7 {[%emt 0:00:06]} 31. Kg4 {[%emt 0:00:42]} Re1 {[%emt 0:00:37]} (31... hxg5 $142 32. hxg5 Rc3) 32. Kh5 {[%emt 0:00:06]} Rxe3 {[%emt 0:01:44]} 33. Kg6 {[%emt 0:00:03]} hxg5 {[%emt 0:00:04]} 34. hxg5 {[%emt 0:00:01]} Kf8 {[%emt 0:00:00]} 35. Nd7+ {[%emt 0:00:03]} Ke7 {[%emt 0:00:04]} 36. Nxc5 {[%emt 0:00:00]} e5 {[%emt 0:00:00]} 37. f5 {[%emt 0:00:05][%cal Bf4f5,Bf5f6][%mdl 32]} Kd6 {[%emt 0:00:19]} 38. Ne6 {[%emt 0:00:01]} e4 {[%emt 0:00:08]} 39. Kxg7 {[%emt 0:00:08]} Rf3 {[%emt 0:00:36]} 40. f6 {[%emt 0:00:06]} e3 {[%emt 0:00:22]} 41. Nd4 {[%emt 0:00:00] Weighted Error Value: White=0.06 (flawless) /Black=0.70} ({Weaker is} 41. f7 e2 42. f8=R (42. Nf4 $2 Rxf4 43. f8=Q+ Rxf8 $19) 42... Rxf8 43. Nxf8 a5 $11) 1-0

[Event "MCCT Chessable Masters 2022"]
[Site "Online"]
[Date "2022.05.16"]
[Round "4.2"]
[White "Mishra, Abhimanyu"]
[Black "Mamedyarov, Shakhriyar"]
[Result "1-0"]
[ECO "C54"]
[WhiteElo "2535"]
[BlackElo "2770"]
[Annotator "TA"]
[PlyCount "83"]
[EventDate "2022.05.19"]
[EventType "tourn"]
[EventCountry "NET"]
[SourceTitle "playchess.com"]
[Source "ChessBase"]
[SourceQuality "1"]
[TimeControl "900+10"]

{[%evp 13,83,40,48,33,32,30,54,23,9,21,23,31,26,31,25,26,30,17,28,19,41,13,41,41,60,49,93,97,94,97,220,197,221,209,221,192,203,142,376,381,433,434,433,433,421,422,412,310,470,468,516,510,29980,506,488,485,1043,528,1760,855,1060,488,506,483,475,441,561,560,554,547,29998,29999]} 1. e4 {[%emt 0:00:00]} e5 {[%emt 0:00:00]} 2. Nf3 {[%emt 0:00:02]} Nc6 {[%emt 0:00:01]} 3. Bc4 {[%emt 0:00:02]} Bc5 {[%emt 0:00:02]} 4. c3 {[%emt 0:00:02]} Nf6 {[%emt 0:00:01]} 5. d3 {[%emt 0:00:01]} O-O {[%emt 0:00:02]} 6. O-O {[%emt 0:00:01]} d5 {[%emt 0:00:10]} 7. exd5 {[%emt 0:00:02]} Nxd5 {[%emt 0:00:00]} 8. a4 {[%emt 0:00:09] C54: Giuoco Piano: 4 c3 Nf6, main lines with 5 d4 and 5 d3.} a5 {[%emt 0:00:26]} 9. Nbd2 {[%emt 0:00:11]} Kh8 {[%emt 0:01:17] [#]} 10. Re1 $146 {[%emt 0:01:46] White is slightly better.} (10. Ne4 $5 {[%cal Re4c5]} Be7 11. Qb3 $14) ({Predecessor:} 10. Ne4 Be7 11. Qb3 Be6 12. Nfg5 Qd7 13. Nxe6 fxe6 14. Ng5 Bxg5 15. Bxg5 b5 16. axb5 {0-1 (68) Aslanov,U (2019)-Bykov,E (2436) Chess.com INT 2020}) 10... f6 {[%emt 0:00:03]} 11. d4 {[%emt 0:01:18]} Ba7 {[%emt 0:01:44][%cal Re5d4]} 12. dxe5 {[%emt 0:01:03]} Nxe5 {[%emt 0:00:08]} 13. Nxe5 {[%emt 0:01:18]} fxe5 {[%emt 0:00:00]} 14. Ne4 {[%emt 0:00:22]} Be6 {[%emt 0:02:21][%cal Od5c3]} 15. Bg5 {[%emt 0:01:33][%cal Bc1g5,Bg5h4,Bh4g3,Bg3e5][%mdl 32]} Qd7 {[%emt 0:00:15]} 16. Bh4 $36 {[%emt 0:00:51][%mdl 2048] White fights for an advantage.} h6 {[%emt 0:01:24] Prevents Ng5.} 17. Bg3 {[%emt 0:00:52]} Qf7 {[%emt 0:00:20]} 18. Qb3 {[%emt 0:00:43]} (18. Bxe5 Bxf2+ 19. Nxf2 Qxf2+ 20. Kh1 Ne3 21. Rxe3 (21. Qe2 Qxe2 22. Bxe2 Nc2 $17) 21... Qxe3 $17) 18... c6 {[%emt 0:00:16]} 19. Kh1 {[%emt 0:00:57]} Rad8 {[%emt 0:01:25]} 20. Bxe5 {[%emt 0:01:41]} Bh3 {[%emt 0:01:27][%cal Oh3g2]} 21. Bg3 {[%emt 0:03:15]} (21. gxh3 Qf3+ 22. Kg1 Bxf2+ 23. Nxf2 Qxf2+ 24. Kh1 Qf3+ 25. Kg1 Ne3) 21... Bxg2+ {[%emt 0:03:04]} 22. Kxg2 $18 {[%emt 0:00:02] Kg1 is the strong threat.} Qf3+ {[%emt 0:00:02]} 23. Kg1 {[%emt 0:00:03]} Ne3 {[%emt 0:00:14]} 24. Rxe3 {[%emt 0:00:41]} (24. fxe3 $2 Qxe4 25. Bf1 (25. Qxb7 Rd2) 25... Rd2 $19) 24... Bxe3 {[%emt 0:00:01]} 25. Re1 {[%emt 0:00:13][%cal Oc4f1]} (25. fxe3 Qxe4 26. Rf1 h5 27. Rxf8+ Rxf8 $19) 25... Qxe4 $2 {[%emt 0:00:01] Black cannot hold the game after this.} (25... Rd2 $16 26. Rxe3 (26. Qa3 c5 $11) 26... Rd1+ 27. Bf1 Rxf1+ 28. Kxf1 Qxe3) 26. Rxe3 {[%emt 0:00:34] The board is on fire.} Qb1+ {[%emt 0:00:02]} 27. Kg2 {[%emt 0:00:05]} Rd1 {[%emt 0:00:01] [#] ( -> ...Rg1+)} 28. Be2 {[%emt 0:01:12]} Rg1+ {[%emt 0:01:36]} 29. Kh3 {[%emt 0:00:01] aiming for Bd3.} Qf5+ {[%emt 0:00:12]} 30. Bg4 {[%emt 0:00:08]} Qg5 {[%emt 0:00:01]} (30... Rxg3+ {was necessary.} 31. Rxg3 (31. fxg3 Qf1+ 32. Kh4 Qf6+ 33. Kh3 Qf1+ 34. Kh4 Qf6+ 35. Kh3 Qf1+ $11) 31... Qxf2) 31. Qe6 {[%emt 0:00:38]} h5 {[%emt 0:00:06]} 32. Be2 {[%emt 0:00:12][%cal Bg4e2,Be2d3,Bd3f5][%mdl 32] [#] Threatens to win with Re5.} Rf5 {[%emt 0:00:49]} (32... Qf6 $18 33. Qxf6 gxf6) 33. Qe4 {[%emt 0:00:24]} (33. Qc8+ $142 Kh7 34. Re8 Kg6 35. Rh8 Qf6 36. Bd3 Re1 37. Rf8 Re6 38. Rxf6+ Rexf6 39. Bh4) 33... Rf8 {[%emt 0:00:38]} 34. Bd3 {[%emt 0:00:12][%csl Gd3][%cal Re4h7]} Qh6 {[%emt 0:00:01] Inhibits Qh7+.} (34... Qg4+ $142 35. Qxg4 hxg4+ 36. Kxg4 Kg8 37. Bc4+ Kh7) 35. Qe7 {[%emt 0:00:09][%cal Re7f8]} Rg8 {[%emt 0:00:06]} 36. Qf7 {[%emt 0:00:12]} (36. Re6 $142 Rxg3+ 37. fxg3) 36... Qg5 {[%emt 0:00:13]} 37. Qf5 {[%emt 0:00:11]} (37. Bf5 $142 Qf6 38. Qxh5+ Qh6 39. Qxh6+ gxh6 40. Be5+ R8g7 41. Rg3) 37... Qxf5+ {[%emt 0:00:04]} 38. Bxf5 {[%emt 0:00:00]} Rf8 {[%emt 0:00:02]} 39. Bg6 {[%emt 0:00:07]} b5 {[%emt 0:00:07]} 40. axb5 {[%emt 0:00:12]} cxb5 {[%emt 0:00:00]} 41. Re5 {[%emt 0:00:08]} Rf6 {[%emt 0:00:14]} 42. Re8+ {[%emt 0:00:05] Weighted Error Value: White=0.51/Black=0.93} 1-0